bitfinex/quotes_BTCUSD_20250523
["timestamp","ask_amount","ask_price","bid_price","bid_amount"]
[1748019913427,0.12814734,109280.0,109270.0,1.40157968]
[1748019913642,0.31116344,109280.0,109270.0,1.32034565]
[1748019913999,0.31116352,109280.0,109270.0,1.32034565]
[1748019914302,0.31116352,109280.0,109270.0,1.32949712]
[1748019914497,0.10984607,109280.0,109270.0,1.33864851]
[1748019914727,0.09154556,109280.0,109270.0,1.69695086]
[1748019914929,0.10984591,109280.0,109270.0,1.69695095]
[1748019915146,0.12814692,109280.0,109270.0,0.98922557]
[1748019915344,0.12814692,109280.0,109270.0,1.66034557]
[1748019915554,0.11799629,109280.0,109270.0,1.66949679]
[1748019915722,0.11699629,109280.0,109270.0,1.67864793]
[1748019915999,0.18298261,109300.0,109280.0,0.20130308]
[1748019916207,0.08954556,109290.0,109280.0,0.21350198]
[1748019916409,0.08954556,109290.0,109280.0,1.58401078]
[1748019916585,0.08954556,109290.0,109280.0,1.60231221]
[1748019917188,0.08954556,109290.0,109280.0,1.58401078]
[1748019917414,0.28169487,109290.0,109280.0,1.58401078]
[1748019917651,0.29084467,109290.0,109280.0,1.59316158]
[1748019918437,0.29999421,109290.0,109280.0,1.60231221]
[1748019918645,0.29999421,109290.0,109280.0,1.32803221]
[1748019918851,0.29084467,109290.0,109280.0,1.9503249]
[1748019919076,0.29184467,109290.0,109280.0,1.9503249]
[1748019921022,0.29184467,109290.0,109280.0,1.2792449]
[1748019921266,0.28269487,109290.0,109280.0,1.9503249]
[1748019921686,0.001,109290.0,109280.0,1.7314051]
[1748019921896,0.001,109290.0,109280.0,2.4024851]
[1748019922111,0.001,109290.0,109280.0,2.40190194]
[1748019922281,0.0284483,109290.0,109280.0,2.03144267]
[1748019922500,0.37760241,109290.0,109280.0,0.00856705]
[1748019922846,0.37760241,109290.0,109280.0,0.28280705]
[1748019923047,0.38614344,109290.0,109280.0,0.28280705]
[1748019923415,0.20133554,109270.0,109260.0,0.3613088]
[1748019923620,0.2908811,109270.0,109260.0,1.0323888]
[1748019923851,0.2908811,109270.0,109260.0,1.2154384]
[1748019924203,0.28172988,109270.0,109260.0,1.2154384]
[1748019924398,0.28172988,109270.0,109260.0,0.002]
[1748019924669,0.34572988,109270.0,109260.0,0.67308]
[1748019924861,0.34572988,109270.0,109260.0,0.67508]
[1748019925091,0.34572988,109270.0,109260.0,0.03083565]
[1748019925222,0.34572988,109270.0,109260.0,0.70191565]
[1748019925424,0.34572988,109270.0,109260.0,0.02883565]
[1748019925630,0.34572988,109270.0,109260.0,0.69991565]
[1748019926490,0.34572988,109270.0,109260.0,0.69791565]
[1748019926703,0.34572988,109270.0,109260.0,0.69891565]
[1748019927064,0.34572988,109270.0,109260.0,0.69899565]
[1748019927259,0.31342988,109270.0,109260.0,0.69899565]
[1748019928938,0.28172988,109270.0,109260.0,0.69899565]
[1748019929123,0.28172988,109270.0,109260.0,1.06030445]
[1748019929520,0.09869653,109270.0,109260.0,0.97495524]
[1748019929726,0.10784775,109270.0,109260.0,1.69621927]
[1748019929997,0.10784767,109270.0,109260.0,1.69621927]
[1748019930440,0.10784767,109270.0,109260.0,1.67791524]
[1748019930771,0.11699897,109270.0,109260.0,1.69621944]
[1748019931042,0.11699897,109270.0,109260.0,2.04537141]
[1748019931244,0.11699897,109270.0,109260.0,2.02706738]
[1748019931376,0.11699897,109270.0,109260.0,2.04537141]
[1748019932176,0.10784767,109270.0,109260.0,2.0545233]
[1748019932401,0.11699897,109270.0,109260.0,2.0545233]
[1748019932760,0.11699897,109270.0,109260.0,2.04537141]
[1748019932986,0.11699897,109270.0,109260.0,2.0545233]
[1748019933115,0.11699897,109270.0,109260.0,2.04381467]
[1748019933537,0.29262615,109270.0,109260.0,0.75988771]
[1748019933746,0.29088118,109270.0,109260.0,1.58179731]
[1748019934152,0.28172988,109270.0,109260.0,0.91063731]
[1748019934348,0.28172988,109270.0,109260.0,0.72758771]
[1748019934600,0.28172988,109270.0,109260.0,1.58179731]
[1748019935418,0.28172988,109270.0,109260.0,1.22048851]
[1748019935620,0.28172988,109270.0,109260.0,0.91063731]
[1748019936034,0.28172988,109270.0,109260.0,1.58179731]
[1748019936467,0.28172988,109270.0,109260.0,0.91063731]
[1748019936677,0.28172988,109270.0,109260.0,1.58179731]
[1748019936885,0.28172988,109270.0,109260.0,1.61219731]
[1748019937095,0.28172988,109270.0,109260.0,0.54932851]
[1748019937310,0.28172988,109270.0,109260.0,1.58179731]
[1748019937926,0.27257841,109270.0,109260.0,1.58179731]
[1748019939112,0.28172988,109270.0,109260.0,1.95225859]
[1748019939319,0.08954556,109270.0,109260.0,2.04201501]
[1748019939731,0.09869661,109270.0,109260.0,2.04201501]
[1748019941709,0.2006726,109300.0,109290.0,0.18299935]
[1748019941912,0.308516,109300.0,109290.0,1.59809695]
[1748019942196,0.308516,109300.0,109290.0,1.24593803]
[1748019942402,0.29997497,109300.0,109290.0,1.23678815]
[1748019942829,0.29082626,109300.0,109290.0,0.3613088]
[1748019943042,0.29082626,109300.0,109280.0,0.9392449]
[1748019943043,0.19214931,109290.0,109280.0,0.9392449]
[1748019943253,0.29999404,109290.0,109280.0,1.6009249]
[1748019943466,0.29084458,109290.0,109280.0,1.6009249]
[1748019944116,0.29084458,109290.0,109280.0,1.4179088]
[1748019944328,0.29084458,109290.0,109280.0,1.4189088]
[1748019944531,0.29084458,109290.0,109280.0,1.6019249]
[1748019945063,0.29084458,109290.0,109280.0,0.9402449]
[1748019945284,0.28169487,109290.0,109280.0,0.7572288]
[1748019945488,0.28169487,109290.0,109280.0,1.6019249]
[1748019947295,0.28169487,109290.0,109280.0,0.9402449]
[1748019947697,0.28169487,109290.0,109280.0,1.6019249]
[1748019949077,0.28169487,109290.0,109280.0,0.9402449]
[1748019949277,0.28169487,109290.0,109280.0,1.6018849]
[1748019951687,0.28169487,109290.0,109280.0,0.7572288]
[1748019951896,0.28169487,109290.0,109280.0,1.6018449]
[1748019952499,0.28169487,109290.0,109280.0,1.4188288]
[1748019952832,0.09869502,109290.0,109280.0,1.65274625]
[1748019952975,0.10784423,109290.0,109280.0,1.69419672]
[1748019953183,0.1169936,109290.0,109280.0,1.69419672]
[1748019953383,0.1169936,109290.0,109280.0,1.7033471]
[1748019953579,0.10784406,109290.0,109280.0,1.71249731]
[1748019953789,0.08954556,109290.0,109280.0,2.07380611]
[1748019953999,0.58954556,109290.0,109280.0,2.07380611]
[1748019954206,0.59869485,109290.0,109280.0,2.07380611]
[1748019954740,0.59869477,109290.0,109280.0,2.41380611]
[1748019954902,0.60784415,109290.0,109280.0,2.41380611]
[1748019956108,0.58954556,109290.0,109280.0,2.41380611]
[1748019956322,0.5,109290.0,109280.0,2.41380611]
[1748019957417,0.5,109290.0,109280.0,2.42235266]
[1748019958769,0.4119162,109330.0,109280.0,2.42235266]
[1748019958770,0.35756282,109330.0,109310.0,0.23456203]
[1748019958992,0.11698633,109320.0,109310.0,0.2437099]
[1748019959157,0.10783921,109320.0,109310.0,1.2453099]
[1748019959344,0.10783913,109320.0,109310.0,1.28655769]
[1748019959549,0.10783913,109320.0,109310.0,1.2774099]
[1748019959793,0.12613328,109320.0,109310.0,1.26826203]
[1748019959995,0.12613328,109320.0,109310.0,1.27791855]
[1748019959996,0.13528056,109320.0,109310.0,1.27791855]
[1748019960170,0.13528056,109320.0,109310.0,1.63922735]
[1748019960346,0.11698608,109320.0,109310.0,1.63922735]
[1748019960711,0.1261332,109320.0,109310.0,1.63007948]
[1748019960845,0.1261332,109320.0,109310.0,1.63922735]
[1748019961251,0.1261332,109320.0,109310.0,0.96847948]
[1748019961478,0.31822962,109320.0,109310.0,0.91808332]
[1748019961682,0.2927891,109320.0,109310.0,1.54630332]
[1748019961926,0.2927891,109320.0,109310.0,0.70181745]
[1748019962128,0.2947891,109320.0,109310.0,1.36333745]
[1748019962477,0.2947891,109320.0,109310.0,0.36181745]
[1748019962682,0.2947891,109320.0,109310.0,1.02333745]
[1748019962683,0.3565891,109320.0,109310.0,1.02333745]
[1748019962920,0.41969762,109320.0,109310.0,1.02329745]
[1748019963107,0.3565891,109320.0,109310.0,0.66198865]
[1748019963310,0.3565891,109320.0,109310.0,1.02329745]
[1748019963824,0.3565891,109320.0,109310.0,0.66198865]
[1748019964253,0.11183955,109320.0,109310.0,1.21541153]
[1748019964468,0.30393606,109320.0,109310.0,1.20626332]
[1748019964895,0.11183955,109320.0,109310.0,1.21541153]
[1748019965076,0.12098675,109320.0,109310.0,1.25485957]
[1748019965274,0.13013412,109320.0,109310.0,1.25485965]
[1748019965473,0.13013412,109320.0,109310.0,1.26400769]
[1748019965696,0.10269243,109320.0,109310.0,1.60400769]
[1748019965902,0.13013386,109320.0,109310.0,1.61315564]
[1748019966360,0.3130835,109320.0,109310.0,1.57656332]
[1748019966543,0.13013436,109320.0,109310.0,1.59485965]
[1748019966751,0.12098699,109320.0,109310.0,1.59485965]
[1748019967172,0.30393655,109320.0,109310.0,1.54626332]
[1748019967380,0.30393655,109320.0,109310.0,1.55541161]
[1748019967583,0.30393655,109320.0,109310.0,0.88478332]
[1748019967784,0.30393655,109320.0,109310.0,1.54626332]
[1748019967991,0.30393655,109320.0,109310.0,1.55541153]
[1748019968406,0.30393606,109320.0,109310.0,1.58751153]
[1748019968604,0.30393606,109320.0,109310.0,0.93517965]
[1748019968828,0.30393606,109320.0,109310.0,1.59661965]
[1748019969266,0.30393606,109320.0,109310.0,1.56451973]
[1748019969827,0.30393606,109320.0,109310.0,1.56451982]
[1748019970032,0.30393606,109320.0,109310.0,1.57366794]
[1748019970230,0.12098692,109320.0,109310.0,1.58281598]
[1748019970430,0.11183955,109320.0,109310.0,1.62276377]
[1748019970633,0.11183921,109320.0,109310.0,1.62276318]
[1748019970842,0.11183921,109320.0,109310.0,1.65396318]
[1748019971039,0.12098607,109320.0,109310.0,1.65396318]
[1748019971235,0.12098607,109320.0,109310.0,1.64481548]
[1748019971437,0.12098607,109320.0,109310.0,1.65396326]
[1748019971646,0.13013327,109320.0,109310.0,1.65396335]
[1748019971845,0.13013327,109320.0,109310.0,1.64481556]
[1748019972163,0.13013335,109320.0,109310.0,1.61361556]
[1748019972328,0.13013335,109320.0,109310.0,1.61361564]
[1748019972736,0.13013327,109320.0,109310.0,1.62276351]
[1748019972940,0.30393638,109320.0,109310.0,0.88478332]
[1748019973143,0.29478935,109320.0,109310.0,0.70181745]
[1748019973348,0.29478935,109320.0,109310.0,1.54150332]
[1748019973548,0.29478935,109320.0,109310.0,0.34050865]
[1748019973746,0.36098935,109320.0,109310.0,0.65722865]
[1748019974107,0.36098935,109320.0,109310.0,0.00050865]
[1748019974387,0.36098935,109320.0,109310.0,0.65722865]
[1748019974603,0.36098935,109320.0,109310.0,0.00050865]
[1748019975000,0.36098935,109320.0,109310.0,0.65722865]
[1748019975648,0.36098935,109320.0,109310.0,0.00050865]
[1748019975862,0.36098935,109320.0,109310.0,0.27466865]
[1748019976069,0.3695201,109320.0,109310.0,0.27466865]
[1748019979963,0.3695201,109320.0,109310.0,0.00050865]
[1748019980160,0.45904161,109320.0,109310.0,0.27466865]
[1748019980752,0.20160534,109310.0,109300.0,0.3826]
[1748019980957,0.3552509,109310.0,109300.0,0.3826]
[1748019981565,0.19213157,109300.0,109290.0,0.39476]
[1748019981812,0.31187713,109300.0,109290.0,0.77736]
[1748019982038,0.31187713,109300.0,109290.0,1.05156]
[1748019982504,0.09869452,109300.0,109290.0,1.59586815]
[1748019982720,0.29997504,109300.0,109290.0,1.63791803]
[1748019983165,0.01830235,109270.0,109260.0,0.20979859]
[1748019983369,0.30918328,109270.0,109260.0,0.90735107]
[1748019983573,0.12615027,109270.0,109260.0,1.26565568]
[1748019983785,0.12615077,109270.0,109260.0,0.92565577]
[1748019983998,0.13530241,109270.0,109260.0,1.27480799]
[1748019984241,0.10784783,109270.0,109260.0,1.64526826]
[1748019984449,0.10735589,109270.0,109260.0,1.64826826]
[1748019984807,0.09005362,109270.0,109260.0,1.64826826]
[1748019985007,0.10835555,109270.0,109260.0,1.68146826]
[1748019985210,0.10835555,109270.0,109260.0,1.68446826]
[1748019985653,0.11750677,109270.0,109260.0,1.02766826]
[1748019985851,0.11750669,109270.0,109260.0,1.68446826]
[1748019986029,0.10835555,109270.0,109260.0,1.68446826]
[1748019986233,0.0992045,109270.0,109260.0,1.68446826]
[1748019986440,0.10835555,109270.0,109260.0,1.68446826]
[1748019987020,0.10835547,109270.0,109260.0,1.68446826]
[1748019987235,0.11750661,109270.0,109260.0,1.68446826]
[1748019987426,0.10835547,109270.0,109260.0,1.68446826]
[1748019987635,0.10835555,109270.0,109260.0,1.68450826]
[1748019987877,0.00050806,109270.0,109260.0,2.04581706]
[1748019988728,0.00050806,109270.0,109260.0,2.0543704]
[1748019992581,0.00050806,109270.0,109260.0,1.3975304]
[1748019992782,0.00050806,109270.0,109260.0,2.0544104]
[1748019993213,1e-08,109270.0,109260.0,2.0544104]
[1748019997221,1e-08,109270.0,109260.0,2.0543704]
[1748020000304,1e-08,109270.0,109260.0,1.3975304]
[1748020000511,1e-08,109270.0,109260.0,2.0543704]
[1748020000935,0.00949135,109310.0,109300.0,0.54128028]
[1748020001145,0.10818445,109310.0,109300.0,1.95426908]
[1748020001374,0.11733215,109310.0,109300.0,1.96341762]
[1748020001590,0.10818445,109310.0,109300.0,1.96341762]
[1748020001797,0.11733224,109310.0,109300.0,1.96341762]
[1748020002259,0.11933224,109310.0,109300.0,1.96346808]
[1748020002437,0.11018445,109310.0,109300.0,1.96346808]
[1748020002682,0.11018445,109310.0,109300.0,1.99556808]
[1748020002896,0.11018445,109310.0,109300.0,2.00412615]
[1748020002897,0.12847986,109310.0,109300.0,2.00412615]
[1748020003099,0.12847986,109310.0,109300.0,2.13412615]
[1748020003576,0.11218445,109310.0,109300.0,2.13412615]
[1748020003788,0.12133215,109310.0,109300.0,2.13412615]
[1748020004878,0.12133215,109310.0,109300.0,1.79412615]
[1748020005636,0.13047994,109310.0,109300.0,1.76202615]
[1748020005835,0.30429877,109310.0,109300.0,0.89475733]
[1748020006040,0.30429877,109310.0,109300.0,1.72793994]
[1748020006241,0.30429877,109310.0,109300.0,1.45373994]
[1748020006483,0.30429877,109310.0,109300.0,0.52489046]
[1748020006638,0.36769877,109310.0,109300.0,0.77089046]
[1748020006883,0.36769877,109310.0,109300.0,1.04509046]
[1748020007083,0.45016128,109310.0,109300.0,5.046e-05]
[1748020008933,0.37624121,109310.0,109300.0,5.046e-05]
[1748020011908,0.33729877,109310.0,109300.0,1.07739926]
[1748020012131,0.28429877,109310.0,109300.0,1.26038187]
[1748020014370,0.2751509,109310.0,109300.0,1.26038187]
[1748020014973,0.26600278,109310.0,109300.0,1.26038187]
[1748020017157,0.26600278,109310.0,109300.0,0.89907307]
[1748020017557,0.26600278,109310.0,109300.0,0.52303307]
[1748020017757,0.26600278,109310.0,109300.0,1.17327307]
[1748020018915,0.32850278,109310.0,109300.0,0.18298261]
[1748020019131,0.19214923,109290.0,109280.0,0.18301558]
[1748020019361,0.2908445,109290.0,109280.0,0.54437485]
[1748020019474,0.28169479,109290.0,109280.0,1.01159927]
[1748020019696,0.28169479,109290.0,109280.0,0.18306657]
[1748020019899,0.28169479,109290.0,109280.0,0.83326657]
[1748020020113,0.28169479,109290.0,109280.0,0.18306657]
[1748020020317,0.28169479,109290.0,109280.0,0.85156792]
[1748020020532,0.28169479,109290.0,109280.0,1.21287672]
[1748020020715,0.09869477,109290.0,109280.0,1.2636774]
[1748020020937,0.09869485,109290.0,109280.0,1.2950774]
[1748020021136,0.09869485,109290.0,109280.0,1.2960774]
[1748020021330,0.10784431,109290.0,109280.0,1.4260774]
[1748020021577,0.10784431,109290.0,109280.0,1.41692719]
[1748020021708,0.10784431,109290.0,109280.0,1.39467749]
[1748020021963,0.10784431,109290.0,109280.0,1.4038277]
[1748020022163,0.11699385,109290.0,109280.0,1.4038277]
[1748020022365,0.11699385,109290.0,109280.0,1.41238604]
[1748020022553,0.12614356,109290.0,109280.0,1.40323583]
[1748020022746,0.11699385,109290.0,109280.0,1.41238604]
[1748020023065,0.12614356,109290.0,109280.0,1.40323583]
[1748020023250,0.11699385,109290.0,109280.0,1.4038277]
[1748020023545,0.10784431,109290.0,109280.0,1.4038277]
[1748020023697,0.11699386,109290.0,109280.0,1.4038277]
[1748020024147,0.11699386,109290.0,109280.0,1.39467749]
[1748020024597,0.30914309,109290.0,109280.0,1.05067841]
[1748020024801,0.2999938,109290.0,109280.0,1.33402913]
[1748020024974,0.2999938,109290.0,109280.0,1.33402921]
[1748020025202,0.2999938,109290.0,109280.0,1.34317984]
[1748020025404,0.2999938,109290.0,109280.0,0.67467841]
[1748020025577,0.29084442,109290.0,109280.0,1.3255249]
[1748020026998,0.29084442,109290.0,109280.0,1.33467562]
[1748020027202,0.29084442,109290.0,109280.0,1.3255249]
[1748020027654,0.29084442,109290.0,109280.0,1.3346757]
[1748020027955,0.29084442,109290.0,109280.0,1.34382642]
[1748020028807,0.29084442,109290.0,109280.0,1.3346757]
[1748020029010,0.29084442,109290.0,109280.0,1.3255249]
[1748020029208,0.29084442,109290.0,109280.0,1.3346757]
[1748020029459,0.29084442,109290.0,109280.0,1.3255249]
[1748020029638,0.29084442,109290.0,109280.0,1.6746757]
[1748020029811,0.29084442,109290.0,109280.0,1.0153249]
[1748020030012,0.29084442,109290.0,109280.0,1.6655649]
[1748020030416,0.28169479,109290.0,109280.0,1.0153249]
[1748020030616,0.31259479,109290.0,109280.0,0.471]
[1748020030824,0.34399479,109290.0,109280.0,0.131]
[1748020031032,0.34399479,109290.0,109280.0,0.001]
[1748020031230,0.34399479,109290.0,109280.0,0.2752]
[1748020031460,0.34399479,109290.0,109280.0,0.001]
[1748020031671,0.34399479,109290.0,109280.0,0.2752]
[1748020031844,0.4335163,109290.0,109280.0,0.001]
[1748020032049,0.4335163,109290.0,109280.0,0.2752]
[1748020034683,1.1686163,109290.0,109280.0,0.001]
[1748020034913,0.92414517,109290.0,109280.0,0.001]
[1748020035388,1.76755397,109290.0,109280.0,0.001]
[1748020035901,0.2327724,109250.0,109240.0,0.28694438]
[1748020036113,0.39480167,109250.0,109240.0,0.65765244]
[1748020036323,0.39480167,109250.0,109240.0,0.64694806]
[1748020036502,0.35321796,109250.0,109240.0,0.64694806]
[1748020036909,0.35321796,109250.0,109240.0,0.00250806]
[1748020037334,0.35321796,109250.0,109240.0,0.64694806]
[1748020037778,0.35321796,109250.0,109240.0,0.64702806]
[1748020037986,0.40684622,109250.0,109240.0,0.00350806]
[1748020038186,0.40684622,109250.0,109240.0,0.64802806]
[1748020038673,0.40684622,109250.0,109240.0,0.00350806]
[1748020038873,0.40684622,109250.0,109240.0,0.64802806]
[1748020040490,0.40684622,109250.0,109240.0,0.00350806]
[1748020040698,0.40684622,109250.0,109240.0,0.64802806]
[1748020040900,0.40684622,109250.0,109240.0,0.64702806]
[1748020041130,0.40884622,109250.0,109240.0,0.64702806]
[1748020041345,0.40884622,109250.0,109240.0,1.00833686]
[1748020041346,0.32581796,109250.0,109240.0,1.00833686]
[1748020041549,0.29491796,109250.0,109240.0,1.00833686]
[1748020041771,0.29491796,109250.0,109240.0,0.64702806]
[1748020041984,0.29491796,109250.0,109240.0,0.64714806]
[1748020041985,0.32541796,109250.0,109240.0,0.64714806]
[1748020042191,0.41176622,109250.0,109240.0,0.64714806]
[1748020042814,0.41176622,109250.0,109240.0,0.00250806]
[1748020043016,0.41176622,109250.0,109240.0,0.64714806]
[1748020044466,0.41176622,109250.0,109240.0,0.00250806]
[1748020045409,0.35781796,109250.0,109240.0,0.00250806]
[1748020045644,0.29491796,109250.0,109240.0,0.36381686]
[1748020047836,0.36011796,109250.0,109240.0,0.00250806]
[1748020048291,0.36011796,109250.0,109240.0,0.64722806]
[1748020049623,0.36011796,109250.0,109240.0,0.37286806]
[1748020049842,0.41543622,109250.0,109240.0,0.64722806]
[1748020050291,0.32701796,109250.0,109240.0,0.64722806]
[1748020051255,0.29491796,109250.0,109240.0,1.22291997]
[1748020051452,0.29491796,109250.0,109240.0,1.62218142]
[1748020051453,0.09354556,109250.0,109240.0,1.62218142]
[1748020052047,0.10269812,109250.0,109240.0,1.62218142]
[1748020052521,0.10069812,109250.0,109240.0,1.62218142]
[1748020052696,0.10985085,109250.0,109240.0,1.62218142]
[1748020052873,0.09154556,109250.0,109240.0,1.62218142]
[1748020053439,0.09054556,109250.0,109240.0,1.62218142]
[1748020053868,0.002,109250.0,109240.0,1.62218142]
[1748020054078,0.002,109250.0,109240.0,1.98349022]
[1748020054512,0.001,109250.0,109240.0,2.00276577]
[1748020054713,0.69884929,109290.0,109280.0,0.57381729]
[1748020054913,0.80669394,109290.0,109280.0,1.65292759]
[1748020055131,0.27518219,109310.0,109300.0,0.18298261]
[1748020055334,0.29080667,109310.0,109300.0,1.56151141]
[1748020055573,0.30910283,109310.0,109300.0,1.56151141]
[1748020055767,0.29995529,109310.0,109300.0,1.56151141]
[1748020056005,0.29995529,109310.0,109300.0,1.56166276]
[1748020056760,0.30195529,109310.0,109300.0,1.56166276]
[1748020056955,0.30195529,109310.0,109300.0,0.36146015]
[1748020057227,0.33215741,109310.0,109300.0,0.64479135]
[1748020057791,0.28565964,109310.0,109300.0,0.64479135]
[1748020058954,0.34925964,109310.0,109300.0,0.00015135]
[1748020059156,0.34925964,109310.0,109300.0,0.64471135]
[1748020059524,1.48418851,109310.0,109300.0,0.00015135]
[1748020059766,1.57371002,109310.0,109300.0,0.00015135]
[1748020060676,1.21240122,109310.0,109300.0,0.00015135]
[1748020061335,1.03895964,109310.0,109300.0,0.27443135]
[1748020063138,1.03895964,109310.0,109300.0,0.64471135]
[1748020064995,1.03895964,109310.0,109300.0,0.00015135]
[1748020065222,1.03895964,109310.0,109300.0,0.27443135]
[1748020066376,1.13516964,109310.0,109300.0,0.27443135]
[1748020066602,1.12848115,109310.0,109300.0,0.27443135]
[1748020066816,0.97535964,109310.0,109300.0,0.27443135]
[1748020067280,0.97535964,109310.0,109300.0,0.64455135]
[1748020067498,0.97535964,109310.0,109300.0,0.00015135]
[1748020067708,1.00795964,109310.0,109300.0,0.64455135]
[1748020067886,1.09748115,109310.0,109300.0,0.00015135]
[1748020068094,1.09748115,109310.0,109300.0,0.64455135]
[1748020068880,1.09748115,109310.0,109300.0,0.00015135]
[1748020069089,1.09748115,109310.0,109300.0,0.64455135]
[1748020069449,1.09748115,109310.0,109300.0,0.00015135]
[1748020069450,1.12908115,109310.0,109300.0,0.00015135]
[1748020069657,1.12908115,109310.0,109300.0,0.64455135]
[1748020069866,1.03955964,109310.0,109300.0,0.64455135]
[1748020070037,1.03955964,109310.0,109300.0,0.00015135]
[1748020070247,1.03955964,109310.0,109300.0,0.64455135]
[1748020071613,1.04955964,109310.0,109300.0,0.64451135]
[1748020071820,1.13908115,109310.0,109300.0,0.27439135]
[1748020072239,0.44938115,109310.0,109300.0,0.27439135]
[1748020073262,0.81068995,109310.0,109300.0,0.27439135]
[1748020073469,0.44938115,109310.0,109300.0,0.27439135]
[1748020075141,0.28565964,109310.0,109300.0,0.27439135]
[1748020075293,0.31825964,109310.0,109300.0,0.00015135]
[1748020075514,0.35605964,109310.0,109300.0,0.00015135]
[1748020075711,0.35605964,109310.0,109300.0,0.27443135]
[1748020076300,0.35605964,109310.0,109300.0,0.00015135]
[1748020076523,0.44558115,109310.0,109300.0,0.27443135]
[1748020077110,0.28565964,109310.0,109300.0,0.00015135]
[1748020077459,0.28565964,109310.0,109300.0,0.64455135]
[1748020077896,0.31645964,109310.0,109300.0,0.64455135]
[1748020079794,0.28565964,109310.0,109300.0,0.64455135]
[1748020081792,0.33352784,109310.0,109300.0,0.64455135]
[1748020084247,0.28565964,109310.0,109300.0,0.64455135]
[1748020085148,0.28565964,109310.0,109300.0,0.00015135]
[1748020085519,0.28565964,109310.0,109300.0,0.64447135]
[1748020086963,0.28565964,109310.0,109300.0,0.37023135]
[1748020087100,0.28565964,109310.0,109300.0,0.64447135]
[1748020091486,0.33352784,109310.0,109300.0,0.64447135]
[1748020091686,0.28565964,109310.0,109300.0,0.64447135]
[1748020092367,0.19214915,109290.0,109280.0,0.3914088]
[1748020092582,0.28169471,109290.0,109280.0,0.76164031]
[1748020093426,0.28269471,109290.0,109280.0,1.03688031]
[1748020094222,0.28269471,109290.0,109280.0,1.05730771]
[1748020095086,0.28269471,109290.0,109280.0,0.69575891]
[1748020095484,0.28269471,109290.0,109280.0,1.08866771]
[1748020095684,0.28269471,109290.0,109280.0,1.42866771]
[1748020096687,0.28269471,109290.0,109280.0,1.06735891]
[1748020096886,0.28269471,109290.0,109280.0,1.07600182]
[1748020098357,0.28269471,109290.0,109280.0,1.43731062]
[1748020099663,0.10884507,109290.0,109280.0,1.43731062]
[1748020099875,0.001,109290.0,109280.0,2.00908692]
[1748020101307,0.001,109290.0,109280.0,2.0197913]
[1748020102084,0.001,109290.0,109280.0,2.0197513]
[1748020102764,0.01014929,109290.0,109280.0,2.0197513]
[1748020102901,0.01014929,109290.0,109280.0,2.02607087]
[1748020103108,0.01014921,109290.0,109280.0,1.66476207]
[1748020103341,0.01929859,109290.0,109280.0,1.66476207]
[1748020103610,0.01014921,109290.0,109280.0,1.66476207]
[1748020103749,0.02844804,109290.0,109280.0,1.66476207]
[1748020104212,0.22974707,109290.0,109280.0,1.66476207]
[1748020104360,0.04674772,109290.0,109280.0,1.66476216]
[1748020104563,0.22059786,109290.0,109280.0,1.01157186]
[1748020104771,0.22974782,109290.0,109280.0,1.02072232]
[1748020104983,0.22059786,109290.0,109280.0,1.64486756]
[1748020105188,0.21144857,109290.0,109280.0,1.65401803]
[1748020105552,0.21144857,109290.0,109280.0,1.66316841]
[1748020105953,0.01929883,109290.0,109280.0,1.67231862]
[1748020106093,0.02844854,109290.0,109280.0,1.67231862]
[1748020106299,0.01014921,109290.0,109280.0,2.03362742]
[1748020106520,0.001,109290.0,109280.0,2.03362742]
[1748020106729,0.01014921,109290.0,109280.0,2.03362742]
[1748020107311,0.001,109290.0,109280.0,2.03362742]
[1748020107642,0.001,109290.0,109280.0,2.39964742]
[1748020107826,0.01014921,109290.0,109280.0,2.39964742]
[1748020108271,0.001,109290.0,109280.0,2.39964742]
[1748020108683,0.001,109290.0,109280.0,2.4103518]
[1748020109871,0.001,109290.0,109280.0,2.39964742]
[1748020110703,0.001,109290.0,109280.0,2.4103518]
[1748020114753,0.001,109290.0,109280.0,1.7663518]
[1748020115071,0.001,109290.0,109280.0,2.4103118]
[1748020116689,0.001,109290.0,109280.0,2.4102718]
[1748020117544,0.001,109290.0,109280.0,2.40395223]
[1748020118387,0.001,109290.0,109280.0,2.41024656]
[1748020120228,0.001,109290.0,109280.0,2.38981916]
[1748020122950,0.001,109290.0,109280.0,2.38977916]
[1748020125917,0.001,109290.0,109280.0,2.11561916]
[1748020126127,0.001,109290.0,109280.0,2.38977916]
[1748020126330,0.001,109290.0,109280.0,2.38933916]
[1748020127753,0.001,109290.0,109280.0,1.02328156]
[1748020128019,0.29184442,109290.0,109280.0,1.39756193]
[1748020128439,0.32344442,109290.0,109280.0,1.73756193]
[1748020128658,0.32344442,109290.0,109280.0,1.39756193]
[1748020128872,0.39282599,109290.0,109280.0,1.73756193]
[1748020129097,0.39282599,109290.0,109280.0,1.36554875]
[1748020129315,0.39282599,109290.0,109280.0,0.38210875]
[1748020129550,0.39282599,109290.0,109280.0,1.02554875]
[1748020129762,0.39282599,109290.0,109280.0,1.01925442]
[1748020129970,0.39282599,109290.0,109280.0,1.01061151]
[1748020130326,0.39182599,109290.0,109280.0,1.01061151]
[1748020130851,0.39182599,109290.0,109280.0,1.00961151]
[1748020131055,0.39382599,109290.0,109280.0,1.00961151]
[1748020131609,0.39682599,109290.0,109280.0,1.00961151]
[1748020131993,0.39682599,109290.0,109280.0,0.36617151]
[1748020132201,0.39682599,109290.0,109280.0,1.00969151]
[1748020132966,0.35844442,109290.0,109280.0,1.00969151]
[1748020134479,0.35844442,109290.0,109280.0,0.73549151]
[1748020134700,0.35844442,109290.0,109280.0,1.00969151]
[1748020136672,0.35844442,109290.0,109280.0,1.00973151]
[1748020140355,0.35844442,109290.0,109280.0,1.00977151]
[1748020144233,0.35844442,109290.0,109280.0,0.36617151]
[1748020144234,0.4125872,109290.0,109280.0,0.36617151]
[1748020144468,0.4125872,109290.0,109280.0,1.00981151]
[1748020145552,0.4125872,109290.0,109280.0,0.36617151]
[1748020145756,0.4125872,109290.0,109280.0,0.64041151]
[1748020146137,0.35844442,109290.0,109280.0,0.64041151]
[1748020146609,0.35844442,109290.0,109280.0,0.36617151]
[1748020146820,0.35844442,109290.0,109280.0,0.64041151]
[1748020147947,0.35844442,109290.0,109280.0,0.27439151]
[1748020151113,0.35844442,109290.0,109280.0,0.00015151]
[1748020151322,0.785896,109290.0,109280.0,0.27443151]
[1748020151533,0.785896,109290.0,109280.0,0.00015151]
[1748020151922,0.795896,109290.0,109280.0,0.00015151]
[1748020154160,0.4245872,109290.0,109280.0,0.00015151]
[1748020154366,0.4345872,109290.0,109280.0,0.00015151]
[1748020158661,0.795896,109290.0,109280.0,0.00015151]
[1748020158886,0.19221951,109250.0,109240.0,0.56603051]
[1748020159092,0.28176507,109250.0,109240.0,0.93541857]
[1748020159523,0.28176507,109250.0,109240.0,0.94174536]
[1748020160007,0.28176507,109250.0,109240.0,1.21606536]
[1748020160198,0.28176507,109250.0,109240.0,1.21906536]
[1748020160350,0.28176507,109250.0,109240.0,1.02463485]
[1748020160778,0.28176507,109250.0,109240.0,0.75133725]
[1748020161167,0.28176507,109250.0,109240.0,0.00983485]